Cogmind - Beta 12 @@@ ROGUE MODE // 2024.01.12 @ 20:57:25 Player: UberDoot Result: Destroyed by YI-UF0 with YI-UF0's Doublenader Performance ------------- Evolutions (0) 0 Regions Visited (2) 400 Robots Destroyed (16) 80 Value Destroyed (432) 432 Prototype IDs (0) 0 Alien Tech Used (0) 0 Bonus (0) 0 TOTAL SCORE: 912 Bonus ------- None Cogmind --------- Core Integrity 0/250 Matter 263/300 Energy 250/250 System Corruption 1% Temperature Cool (0) Movement Core (400) Ox7 Location -10/Mines Parts ------- > --- POWER (1) -------- Ion Engine > --- PROPULSION (2) --- (None) > --- UTILITY (2) ------ Medium Storage Unit Signal Interpreter > --- WEAPON (2) ------- Particle Gun Rocket Launcher > --- INVENTORY (10) --- High-capacity Matter Pod (102) Structural Scanner Transport Network Coupler Targeting Computer Targeting Computer Targeting Computer Shield Generator Particle Gun Particle Gun Peak State ------------ > --- POWER ------------ Ion Engine > --- PROPULSION ------- Aluminum Leg Aluminum Leg > --- UTILITY ---------- Medium Storage Unit Signal Interpreter > --- WEAPON ----------- Particle Gun Particle Gun > --- INVENTORY -------- Ion Engine High-capacity Matter Pod Structural Scanner Transport Network Coupler Targeting Computer Targeting Computer Targeting Computer Shield Generator Rocket Launcher [Rating: 10] Favorites ----------- Power Ion Engine Engine Ion Engine Propulsion Aluminum Leg Leg Aluminum Leg Utility Medium Storage Unit Device Heat Sink Storage Medium Storage Unit Processor Signal Interpreter Weapon Assault Rifle Energy Gun Particle Gun Ballistic Gun Assault Rifle Launcher Rocket Launcher Build | -11 -10 -10 ------- Run | Jun Mat Min Slots Evolved . | . . . Power . | . . . Propulsion . | . . . Utility . | . . . Weapon . | . . . Parts Attached 18 | 5 9 4 Power 5 | 1 2 2 Engine 5 | 1 2 2 Core . | . . . Reactor . | . . . Propulsion 3 | 2 1 . Treads . | . . . Leg 3 | 2 1 . Wheel . | . . . Hover . | . . . Flight . | . . . Utility 5 | . 5 . Device 3 | . 3 . Storage 1 | . 1 . Processor 1 | . 1 . Hackware . | . . . Protection . | . . . Artifact . | . . . Weapon 5 | 2 1 2 Energy Gun 2 | . 1 1 Energy Cannon . | . . . Ballistic Gun 2 | 2 . . Ballistic Cannon . | . . . Launcher 1 | . . 1 Special Weapon . | . . . Impact Weapon . | . . . Slashing Weapon . | . . . Piercing Weapon . | . . . Special Melee Weapon . | . . . Unidentified Prototypes . | . . . Parts Lost 4 | . . 4 Power 1 | . . 1 Propulsion 2 | . . 2 Utility . | . . . Weapon 1 | . . 1 Highest Loss Streak 2 | . . 2 To Critical Strikes . | . . . Average Slot Usage (%) 95 | . 95 92 Engine 13 | . 14 12 Leg 26 | . 28 22 Device 8 | . 11 . Storage 9 | . 8 14 Processor 6 | . 4 14 Energy Gun 9 | . 4 23 Ballistic Gun 17 | . 23 1 Naked Turns . | . . . Heaviest Build 22 | 7 21 22 Greatest Support 20 | 20 20 20 Greatest Overweight (x) 2 | . 1 2 Average Overweight (x) . | . . 1 Largest Inventory Capacity 10 | 5 10 10 Average Capacity 8 | 5 8 10 Most Carried 10 | 5 10 10 Average Carried 7 | 2 7 9 Final Capacity 10 | 5 10 10 Final Carried 10 | 5 10 9 Class Distribution -------------------- 100% | Mutant Dominant Class ---------------- Mutant | -10/Materials Mutant | -10/Mines Resources | -11 -10 -10 ----------- Run | Jun Mat Min Matter Collected 662 | 274 312 76 Remotely . | . . . Salvage Created 493 | 31 376 86 Parts 37 | 2 30 5 Haulers Intercepted 1 | . 1 . Recyclers Shooed 2 | . 2 . Parts Field Recycled . | . . . Retrieved Matter . | . . . Parts Self-Destructed . | . . . Prevented . | . . . Kills | -11 -10 -10 ------- Run | Jun Mat Min Combat Hostiles Destroyed 13 | 1 10 2 Guns 13 | 1 10 2 Classes Destroyed 5 | 1 3 1 Builder 1 | . . 1 Hauler 1 | . 1 . Watcher 1 | . 1 . Swarmer 3 | . 3 . Grunt 10 | 1 7 2 Best Kill Streak 2 | 1 2 2 Combat Bots Only 2 | 1 2 2 Max Kills in Single Turn 1 | 1 1 1 Gunslinging . | . . . Exploded . | . . . Melee . | . . . Uniques/NPCs Destroyed . | . . . Combat | -11 -10 -10 -------- Run | Jun Mat Min Damage Taken 948 | . 354 594 Core 253 | . 59 194 Absorbed by Shields . | . . . Core Remaining (%) 100 | 100 . . Volleys Fired 44 | 4 32 8 Largest 2 | 2 2 2 Hottest 130 | 40 85 130 Shots Fired 86 | 8 64 14 Gun 84 | 8 64 12 Cannon . | . . . Launcher 2 | . . 2 Special . | . . . Kinetic 71 | 8 59 4 Thermal 13 | . 5 8 Explosive 2 | . . 2 Electromagnetic . | . . . Robot Hit Streak 13 | 2 13 5 Robot Miss Streak 2 | 1 2 1 Penetration Max . | . . . Secondary Targets 1 | . . 1 Max Gunslinging Chain 1 | . . 1 Shots Hit Robots 59 | 5 45 9 Core Hits 26 | 2 19 5 Critical Kills . | . . . Critical Parts Destroyed 1 | 1 . . Critical Strikes 1 | 1 . . Destroy 1 | 1 . . Melee Attacks . | . . . Impact . | . . . Slashing . | . . . Piercing . | . . . Sneak Attacks . | . . . Combat Hostiles . | . . . Follow-up Attacks . | . . . Damage Inflicted 820 | 61 588 171 Guns 779 | 61 585 133 Cannons . | . . . Explosions 38 | . . 38 Melee . | . . . Ramming 3 | . 3 . Kinetic 602 | 61 517 24 Thermal 177 | . 68 109 Explosive 38 | . . 38 Electromagnetic . | . . . Impact . | . . . Slashing . | . . . Piercing . | . . . Highest Corruption 1 | . 1 1 Average Corruption 1 | . 1 1 Corruption Purged . | . . . Corruption Blocked . | . . . Effects 3 | . 2 1 Message Errors 2 | . 1 1 Heat Flow Errors 1 | . 1 . Overload Shots . | . . . Overflow Damage . | . . . Projectiles . | . . . Explosions . | . . . Melee . | . . . Knockbacks . | . . . Impact . | . . . Kinetic . | . . . Secondary . | . . . Self-Inflicted Damage . | . . . Shots . | . . . Rammed . | . . . Targets Rammed 2 | . 2 . Kicked 2 | . 2 . Crushed . | . . . Highest Temperature 307 | . 159 307 Average Temperature 85 | . 41 141 Received Heat Transfer 297 | . 204 93 Siege Activations . | . . . Robots Corrupted . | . . . Combat Hostiles . | . . . Parts Fried . | . . . Impact Corruptions . | . . . Robots Melted . | . . . Combat Hostiles . | . . . Parts Melted . | . . . Heat Transferred 407 | . 148 259 Parts Sabotaged . | . . . Parts Stolen . | . . . Parts Stripped . | . . . Power Chain Reactions . | . . . Missiles Intercepted . | . . . Alert | -11 -10 -10 ------- Run | Jun Mat Min Peak Influence 213 | 20 213 58 Initial 18 | . 13 18 Average 83 | 5 104 47 Maximum Alert Level 1 | . 1 . Low Security (%) 99 | 100 99 100 Level 1 . | . . . Level 2 . | . . . Level 3 . | . . . Level 4 . | . . . Level 5 . | . . . High Security . | . . . Max Security . | . . . Squads Dispatched 2 | . 2 . Investigation 1 | . 1 . Extermination . | . . . Reinforcement 1 | . 1 . Assault . | . . . Garrison . | . . . Intercept . | . . . Searches Triggered . | . . . Construction Impeded . | . . . Haulers Reinforced . | . . . Active Scanning Responses . | . . . Cargo Convoy Interrupts . | . . . Stealth | -11 -10 -10 --------- Run | Jun Mat Min Distress Signals 1 | . 1 . Communications Jammed . | . . . Distress Signals . | . . . Times Spotted 25 | 1 20 4 Peak Tracking Total 4 | 1 4 2 Tactical Retreats 4 | . 3 1 Traps | -11 -10 -10 ------- Run | Jun Mat Min Traps Triggered 2 | . 2 . Indirectly . | . . . Trap Hack Attempts . | . . . Triggered . | . . . Disarmed . | . . . Reprogrammed . | . . . Reused . | . . . Traps Extracted . | . . . Installed . | . . . Triggered . | . . . Machines | -11 -10 -10 ---------- Run | Jun Mat Min Machines Disabled . | . . . Max in Single Turn . | . . . Machines Repaired . | . . . Machines Sabotaged . | . . . Overloaded Fab Kills . | . . . Hacking | -11 -10 -10 --------- Run | Jun Mat Min Machines Accessed 4 | . 4 . Terminals 2 | . 2 . Fabricators . | . . . Repair Stations . | . . . Recycling Units 2 | . 2 . Scanalyzers . | . . . Garrison Access . | . . . Total Hacks 8 | . 8 . Successful 4 | . 4 . Failed 4 | . 4 . Catastrophic 1 | . 1 . Database Lockouts . | . . . Manual . | . . . Terminals 4 | . 4 . Fabricators . | . . . Repair Stations . | . . . Recycling Units 4 | . 4 . Scanalyzers . | . . . Garrison Access . | . . . Terminal Hacks 1 | . 1 . Robot Analysis 1 | . 1 . Fabricator Hacks . | . . . Repair Station Hacks . | . . . Recycling Unit Hacks 3 | . 3 . Report Inventory 2 | . 2 . Retrieve Matter 1 | . 1 . Scanalyzer . | . . . Garrison Access Hacks . | . . . Unauthorized Hacks . | . . . Terminals . | . . . Fabricators . | . . . Repair Stations . | . . . Recycling Units . | . . . Scanalyzers . | . . . Garrison Access . | . . . Data Cores Recovered . | . . . Used . | . . . Hacking Detections 3 | . 3 . Full Trace Events . | . . . Feedback Events . | . . . Feedback Blocked . | . . . Robot Schematics Acquired . | . . . Robots Built . | . . . Authchips . | . . . Time . | . . . Total Robot Build Rating . | . . . Part Schematics Acquired . | . . . Parts Built . | . . . Authchips . | . . . Time . | . . . Total Part Build Rating . | . . . Parts Repaired . | . . . Time . | . . . Parts Recycled . | . . . Recycled Matter . | . . . Retrieved Matter . | . . . Retrieved Components . | . . . Parts Scanalyzed . | . . . Part Schematics Acquired . | . . . Parts Damaged . | . . . Bothacking | -11 -10 -10 ------------ Run | Jun Mat Min Used RIF Installer . | . . . Robots Hacked . | . . . Non-combat . | . . . Combat . | . . . Robot Hacks Applied . | . . . Relay Couplers Released . | . . . Fabnet Peak Effective % . | . . . Robots Rewired . | . . . Allies Hacked . | . . . Hacks Repelled . | . . . Allies | -11 -10 -10 -------- Run | Jun Mat Min Total Allies . | . . . Largest Group . | . . . Highest-Rated Group . | . . . Highest-Rated Ally . | . . . Total Orders . | . . . Ally Attacks . | . . . Total Damage . | . . . Kills . | . . . Allies Corrupted . | . . . Allies Melted . | . . . Intel | -11 -10 -10 ------- Run | Jun Mat Min Robot Analysis Total 1 | . 1 . Derelict Logs Recovered 1 | . . 1 Drone Launches . | . . . Drone Recoveries . | . . . Exploration | -11 -10 -10 ------------- Run | Jun Mat Min Turns Passed 1300 | 116 906 278 Spaces Moved 796 | 88 589 119 Core 19 | 19 . . Treads . | . . . Legs 777 | 69 589 119 Wheels . | . . . Hover . | . . . Flight . | . . . Fastest Speed 50 | 50 120 120 Average Speed 130 | 104 121 195 Slowest Speed 260 | 120 190 260 Overloaded Moves . | . . . Propulsion Burnouts . | . . . Robots Hopped . | . . . Cave-ins Triggered . | . . . Exploration Rate (%) 42 | 7 67 53 Regions Visited 2 Branch Regions 1 Pre-discovered Areas . | . . . Known Exits Taken 1 | . 1 . Unknown Exits Taken 1 | 1 . . Scrap Searched . | . . . Spaces Dug 9 | . . 9 Terrain Destroyed 9 | . . 9 Melee . | . . . Projectile . | . . . AOE 9 | . . 9 Terrain Rammed . | . . . Walls Destroyed . | . . . Machines Disabled . | . . . Actions | -11 -10 -10 --------- Run | Jun Mat Min Total 972 | 101 722 149 Wait 72 | . 56 16 Move 794 | 87 588 119 Hop . | . . . Pick Up 23 | 5 17 1 Fast Attach 12 | 5 6 1 Attach 4 | . 2 2 Detach 2 | . 2 . Swap 2 | . 1 1 Drop 17 | . 16 1 Fire 44 | 4 32 8 Melee . | . . . Ram . | . . . Kick 2 | . 2 . Crush . | . . . Escape Stasis . | . . . Rewire . | . . . Trap . | . . . Miscellaneous . | . . . Route ------- -11/Junkyard -10/Materials (discovered 2 exits: *Mat / *Min) -10/Mines (discovered 1 exit: *Mat) History --------- Turn | Location | Event 2 | -11/Junkyard | Met Revision 17 70 | -11/Junkyard | Discovered new exit (range 8) 117 | -11/Junkyard | Entered Materials 302 | -10/Materials | Build established: Mutant 460 | -10/Materials | Discovered new exit (range 7) 783 | -10/Materials | Identified exit to Materials 831 | -10/Materials | Discovered new exit (range 16) 849 | -10/Materials | Identified exit to Mines 1023 | -10/Materials | Entered Mines 1191 | -10/Mines | Discovered exit to Materials (range 7) 1192 | -10/Mines | Core integrity fell below 50% 1202 | -10/Mines | Core integrity fell below 20% 1284 | -10/Mines | Learned 2 Materials zone layouts 1301 | -10/Mines | Destroyed by YI-UF0 with YI-UF0's Doublenader Last Messages --------------- 01181_ R-06 Scavenger destroyed. 01182_ The unstable cave ceiling collapses. 01183_ U-05 Engineer destroyed. 01191_ EXIT=FOUND: MATERIALS 01192_ The unstable cave ceiling collapses. 01193_ YI-UF0 mumbles something. 01195_ The unstable cave ceiling collapses. 01201_ Aluminum Leg destroyed. 01201_ Ion Engine destroyed. 01203_ The unstable cave ceiling collapses. 01205_ YI-UF0 mumbles something. 01207_ The unstable cave ceiling collapses. 01218_ K-01 Serf collects debris. 01284_ Acquired derelict log, extracted data. Data stored: Materials zone layouts (x2). 01286_ K-01 Serf collects debris. 01292_ YI-UF0 mumbles something. 01297_ The unstable cave ceiling collapses. 01299_ Aluminum Leg destroyed. 01299_ U-05 Engineer destroyed. Map ----- +----------------------------------------------------+ | | | | | | | | | | | | | | | | | | | | | ?????????????????????????????????????????????????? | | ?????????????????????????????????????????????????? | | ??????????#####??????????????????????????????????? | | ?????????## #?????????????????????????????????? | | ??####???# ?????????????????????????????????? | | #???# ?????????????????????????????????? | | """ #???# #????????????????????????????????? | | """ #????# #???????????????????????????????? | | """ #????# ####???????????????????????????? | | """ #???## ######??????????????????????? | | #??## #??????????????????????? | | #??# ### #??????????????????????? | | #??# ##?????????????????????? | | #??# #### #?????????????????????? | | #??# #??# #?????????????????????? | | #??## #??# @ #?????????????????????? | | """* #???# ##?# ??????????????????? | | """ #???## ### g !#???????????????? | | """ #????#### ### !%* #?????????????? | | """ #???????## #?# % # #?????????????? | | #????????# ##? #???????????????? | | #???????## ###?? #???????????????? | | #??????## ##???? #???????????????? | | ######?????## ##????? #???????????????? | | ??????????## ##????? #???????????????? | | ?####????## ##?????? #???????????????? | | ?# ##??## ##??????? #???????????????? | | ?# #### ##???????? #???????????????? | | ?# ## ##????????? #???????????????? | | ## ##????????? #???????????????? | | # #?????????? #???????????????? | | #####?????# #???????????????? | | #?### #???????????????? | | # ## #???????????????? | | ## [ #???????????????? | | ?# # #????????????????? | | ?# ## # #??????????????????? | | ## ### % #??????????????????? | | # #?##### #??????????????????? | | ##?????## #??????????????????? | +----------------------------------------------------+ Best States ------------- Heat Dissipation 45 Energy Generation 10 Energy Capacity 250 Matter Stores 300 Matter Capacity 300 Sight Range 16 Terrain Scan Density 10 Evasion (%) 55 Item Schematics ----------------- None Robot Schematics ------------------ None Fabricated ------------ Nothing Alien Tech Used ----------------- None Achievements -------------- None Challenges ------------ None Game ------ Seed MinesnifferAutogunBroadsword Manual? 0 Play Time 00:19:45 Cumulative 5.9 hours Start 2024.01.12 @ 20:39:32 End 2024.01.12 @ 20:57:25 Sessions 1 Manual Loads 0 Difficulty Rogue Special Mode None Game No. 5 Rogue 5 Adventurer 0 Explorer 0 Win Type - Total 0 Types 0/0/0/0/0/0/0/0/0 Lore% 13 Gallery% 9 Achievement% 9 Wizard Run 0 Options --------- ASCII 0 Keyboard 1 Movement Numpad Keybinds 0 Fullscreen 1 Font 18/SmallcapsGlow Map View 76x50 Tactical HUD 1 Map Filters NONE Filters NONE Steam 1 RUN: 3042e014-625c-4b74-87bb-376af18685fe